[Event "Titled Tuesday Blitz March 08 Early 2022"]
[White "Yuan, Qingyu"]
[Black "Cori T., Deysi"]
[WhiteFideId "8609772"]
[BlackFideId "3801934"]
[WhiteElo "2359"]
[BlackElo "2341"]
[Result "1-0"]
[Round "05"]
[TimeControl "180+1"]
[Date "2022.03.09"]
[WhiteClock "0:00:04"]
[BlackClock "0:00:05"]

1. e4 {[%clk 0:02:57]}  e6 {[%clk 0:02:59]} 2. d4 {[%clk 0:02:53]}  d5 {[%clk 0:03:00]} 3. exd5 {[%clk 0:02:47]}  exd5 {[%clk 0:02:59]} 4. Nf3 {[%clk 0:02:45]}  Bd6 {[%clk 0:02:58]} 5. Bd3 {[%clk 0:02:44]}  Ne7 {[%clk 0:02:58]} 6. O-O {[%clk 0:02:44]}  O-O {[%clk 0:02:58]} 7. h3 {[%clk 0:02:41]}  Bf5 {[%clk 0:02:58]} 8. Bxf5 {[%clk 0:02:35]}  Nxf5 {[%clk 0:02:58]} 9. Qd3 {[%clk 0:02:36]}  Qf6 {[%clk 0:02:56]} 10. Qb3 {[%clk 0:02:23]}  Nxd4 {[%clk 0:02:47]} 11. Nxd4 {[%clk 0:02:23]}  Qxd4 {[%clk 0:02:46]} 12. Qxb7 {[%clk 0:02:23]}  Nd7 {[%clk 0:02:43]} 13. Qb5 {[%clk 0:01:55]}  Nf6 {[%clk 0:02:34]} 14. c3 {[%clk 0:01:48]}  Qe5 {[%clk 0:02:30]} 15. g3 {[%clk 0:01:48]}  Qf5 {[%clk 0:02:08]} 16. Kg2 {[%clk 0:01:43]}  Qe4+ {[%clk 0:02:06]} 17. Kg1 {[%clk 0:01:30]}  Rab8 {[%clk 0:02:04]} 18. Qa6 {[%clk 0:01:27]}  Rb6 {[%clk 0:02:04]} 19. Qxa7 {[%clk 0:01:23]}  Qf3 {[%clk 0:01:42]} 20. Nd2 {[%clk 0:01:21]}  Qd3 {[%clk 0:01:42]} 21. Kg2 {[%clk 0:01:16]}  Qb5 {[%clk 0:00:53]} 22. Nf3 {[%clk 0:00:49]}  c5 {[%clk 0:00:26]} 23. a4 {[%clk 0:00:19]}  Qc6 {[%clk 0:00:26]} 24. b4 {[%clk 0:00:19]}  Ra8 {[%clk 0:00:23]} 25. b5 {[%clk 0:00:19]}  Rxa7 {[%clk 0:00:20]} 26. bxc6 {[%clk 0:00:19]}  Rxc6 {[%clk 0:00:21]} 27. Rd1 {[%clk 0:00:10]}  h6 {[%clk 0:00:20]} 28. Be3 {[%clk 0:00:07]}  Ra5 {[%clk 0:00:20]} 29. Nh4 {[%clk 0:00:08]}  Rca6 {[%clk 0:00:18]} 30. Nf5 {[%clk 0:00:08]}  Bf8 {[%clk 0:00:19]} 31. Rdb1 {[%clk 0:00:06]}  Ra8 {[%clk 0:00:17]} 32. Ra2 {[%clk 0:00:05]}  Ne4 {[%clk 0:00:17]} 33. Rc2 {[%clk 0:00:04]}  Rxa4 {[%clk 0:00:17]} 34. Rb7 {[%clk 0:00:03]}  R4a7 {[%clk 0:00:16]} 35. Rb6 {[%clk 0:00:03]}  Ra3 {[%clk 0:00:15]} 36. c4 {[%clk 0:00:03]}  d4 {[%clk 0:00:15]} 37. Bf4 {[%clk 0:00:03]}  d3 {[%clk 0:00:13]} 38. Rcb2 {[%clk 0:00:04]}  Ra2 {[%clk 0:00:10]} 39. Rxa2 {[%clk 0:00:03]}  Rxa2 {[%clk 0:00:10]} 40. Rb8 {[%clk 0:00:04]}  d2 {[%clk 0:00:11]} 41. Bxd2 {[%clk 0:00:04]}  Rxd2 {[%clk 0:00:11]} 42. Ne7+ {[%clk 0:00:05]}  Kh7 {[%clk 0:00:10]} 43. Rxf8 {[%clk 0:00:05]}  Rxf2+ {[%clk 0:00:10]} 44. Kg1 {[%clk 0:00:06]}  Rf3 {[%clk 0:00:10]} 45. g4 {[%clk 0:00:06]}  Rg3+ {[%clk 0:00:10]} 46. Kh2 {[%clk 0:00:06]}  Rf3 {[%clk 0:00:10]} 47. Nf5 {[%clk 0:00:07]}  Ng5 {[%clk 0:00:10]} 48. h4 {[%clk 0:00:07]}  Ne6 {[%clk 0:00:05]} 49. Rxf7 {[%clk 0:00:07]}  Rf4 {[%clk 0:00:05]} 50. Kg3 {[%clk 0:00:06]}  Rxc4 {[%clk 0:00:04]} 51. Re7 {[%clk 0:00:06]}  Rc3+ {[%clk 0:00:04]} 52. Kf2 {[%clk 0:00:06]}  Nf4 {[%clk 0:00:04]} 53. Rxg7+ {[%clk 0:00:06]}  Kh8 {[%clk 0:00:05]} 54. Rc7 {[%clk 0:00:05]}  h5 {[%clk 0:00:05]} 55. g5 {[%clk 0:00:04]}  Ng6 {[%clk 0:00:06]} 56. Rc6 {[%clk 0:00:03]}  Nxh4 {[%clk 0:00:05]} 57. Nxh4 {[%clk 0:00:03]}  Kg7 {[%clk 0:00:04]} 58. Nf5+ {[%clk 0:00:03]}  Kf7 {[%clk 0:00:04]} 59. g6+ {[%clk 0:00:04]}  Kf8 {[%clk 0:00:05]} 60. Rc8# {[%clk 0:00:04]} 1-0


[Site "https://www.chess.com"]

[Event "Titled Tuesday Blitz March 08 Early 2022"]
[White "Zaichenko, Daria"]
[Black "Decuigniere, Tom"]
[WhiteFideId "4197453"]
[BlackFideId "26093820"]
[WhiteElo "2039"]
[BlackElo "1997"]
[Result "1-0"]
[Round "05"]
[TimeControl "180+1"]
[Date "2022.03.09"]
[WhiteClock "0:01:04"]
[BlackClock "0:00:04"]

1. e4 {[%clk 0:03:00]}  c5 {[%clk 0:03:00]} 2. Nf3 {[%clk 0:03:01]}  d6 {[%clk 0:02:59]} 3. d4 {[%clk 0:03:01]}  cxd4 {[%clk 0:03:00]} 4. Nxd4 {[%clk 0:03:01]}  Nf6 {[%clk 0:03:01]} 5. Nc3 {[%clk 0:03:02]}  a6 {[%clk 0:03:01]} 6. Be2 {[%clk 0:02:55]}  e6 {[%clk 0:03:01]} 7. O-O {[%clk 0:02:54]}  Be7 {[%clk 0:03:00]} 8. Kh1 {[%clk 0:02:54]}  Qc7 {[%clk 0:02:57]} 9. f4 {[%clk 0:02:53]}  b5 {[%clk 0:02:53]} 10. Bf3 {[%clk 0:02:46]}  Bb7 {[%clk 0:02:53]} 11. a3 {[%clk 0:02:43]}  Nbd7 {[%clk 0:02:47]} 12. Qe2 {[%clk 0:02:35]}  O-O {[%clk 0:02:36]} 13. Be3 {[%clk 0:02:30]}  Nb6 {[%clk 0:02:09]} 14. Rad1 {[%clk 0:02:16]}  Nc4 {[%clk 0:02:08]} 15. Bc1 {[%clk 0:02:16]}  Rfd8 {[%clk 0:01:42]} 16. g4 {[%clk 0:02:08]}  d5 {[%clk 0:01:12]} 17. exd5 {[%clk 0:01:46]}  Nxd5 {[%clk 0:01:08]} 18. Nxd5 {[%clk 0:01:45]}  Bxd5 {[%clk 0:01:09]} 19. f5 {[%clk 0:01:34]}  Bxf3+ {[%clk 0:00:56]} 20. Qxf3 {[%clk 0:01:18]}  Ne5 {[%clk 0:00:20]} 21. Qe4 {[%clk 0:01:10]}  exf5 {[%clk 0:00:14]} 22. Nxf5 {[%clk 0:01:10]}  Bf6 {[%clk 0:00:04]} 23. g5 {[%clk 0:01:04]} 1-0


[Site "https://www.chess.com"]

[Event "Titled Tuesday Blitz March 08 Early 2022"]
[White "Zaksaite, Salomeja"]
[Black "Hryshchenko, Kamila"]
[WhiteFideId "12801496"]
[BlackFideId "14147491"]
[WhiteElo "1953"]
[BlackElo "1929"]
[Result "1-0"]
[Round "05"]
[TimeControl "180+1"]
[Date "2022.03.09"]
[WhiteClock "0:00:09"]
[BlackClock "0:00:03"]

1. e4 {[%clk 0:02:47]}  d5 {[%clk 0:02:58]} 2. exd5 {[%clk 0:02:46]}  Qxd5 {[%clk 0:02:59]} 3. Nc3 {[%clk 0:02:44]}  Qe5+ {[%clk 0:02:58]} 4. Qe2 {[%clk 0:02:43]}  Qxe2+ {[%clk 0:02:51]} 5. Bxe2 {[%clk 0:02:44]}  Bf5 {[%clk 0:02:51]} 6. d3 {[%clk 0:02:44]}  Nc6 {[%clk 0:02:50]} 7. Bf4 {[%clk 0:02:43]}  O-O-O {[%clk 0:02:47]} 8. O-O-O {[%clk 0:02:43]}  Nd4 {[%clk 0:02:45]} 9. Nf3 {[%clk 0:02:26]}  h6 {[%clk 0:02:40]} 10. Nxd4 {[%clk 0:02:24]}  Rxd4 {[%clk 0:02:39]} 11. Be3 {[%clk 0:02:21]}  Rd8 {[%clk 0:02:34]} 12. Rhe1 {[%clk 0:02:03]}  e6 {[%clk 0:02:29]} 13. f4 {[%clk 0:01:53]}  Nf6 {[%clk 0:02:24]} 14. h3 {[%clk 0:01:52]}  h5 {[%clk 0:02:23]} 15. Bf3 {[%clk 0:01:51]}  a6 {[%clk 0:02:17]} 16. Ne4 {[%clk 0:01:47]}  Nd5 {[%clk 0:02:11]} 17. Bd2 {[%clk 0:01:44]}  Be7 {[%clk 0:02:08]} 18. a3 {[%clk 0:01:42]}  Bh4 {[%clk 0:02:00]} 19. Rf1 {[%clk 0:01:41]}  b6 {[%clk 0:01:49]} 20. c4 {[%clk 0:01:13]}  Ne7 {[%clk 0:01:36]} 21. Bc3 {[%clk 0:01:13]}  f6 {[%clk 0:01:11]} 22. g4 {[%clk 0:01:06]}  hxg4 {[%clk 0:01:08]} 23. hxg4 {[%clk 0:01:07]}  Bg6 {[%clk 0:01:00]} 24. Rh1 {[%clk 0:01:03]}  Rh7 {[%clk 0:00:46]} 25. Rh3 {[%clk 0:00:59]}  Rdh8 {[%clk 0:00:46]} 26. Rdh1 {[%clk 0:00:59]}  f5 {[%clk 0:00:40]} 27. Nd2 {[%clk 0:00:35]}  fxg4 {[%clk 0:00:38]} 28. Bxg4 {[%clk 0:00:32]}  Bf5 {[%clk 0:00:36]} 29. Rg1 {[%clk 0:00:24]}  Bf6 {[%clk 0:00:29]} 30. Rxh7 {[%clk 0:00:19]}  Rxh7 {[%clk 0:00:30]} 31. Bxf6 {[%clk 0:00:10]}  gxf6 {[%clk 0:00:31]} 32. Ne4 {[%clk 0:00:11]}  Bxg4 {[%clk 0:00:25]} 33. Nxf6 {[%clk 0:00:11]}  Bf5 {[%clk 0:00:23]} 34. Nxh7 {[%clk 0:00:10]}  Bxh7 {[%clk 0:00:23]} 35. Rg7 {[%clk 0:00:10]}  Bxd3 {[%clk 0:00:22]} 36. Rxe7 {[%clk 0:00:10]}  Bxc4 {[%clk 0:00:22]} 37. Kd2 {[%clk 0:00:10]}  Kd8 {[%clk 0:00:22]} 38. Rg7 {[%clk 0:00:10]}  Ba2 {[%clk 0:00:17]} 39. Kc3 {[%clk 0:00:10]}  Bb1 {[%clk 0:00:16]} 40. Kd4 {[%clk 0:00:10]}  Bf5 {[%clk 0:00:15]} 41. Ke5 {[%clk 0:00:10]}  Kc8 {[%clk 0:00:13]} 42. Rf7 {[%clk 0:00:09]}  Bg4 {[%clk 0:00:09]} 43. Rg7 {[%clk 0:00:08]}  Bf5 {[%clk 0:00:09]} 44. Re7 {[%clk 0:00:08]}  Kd8 {[%clk 0:00:07]} 45. Rxe6 {[%clk 0:00:08]}  Bxe6 {[%clk 0:00:07]} 46. Kxe6 {[%clk 0:00:08]}  Ke8 {[%clk 0:00:07]} 47. f5 {[%clk 0:00:09]}  a5 {[%clk 0:00:06]} 48. f6 {[%clk 0:00:09]}  a4 {[%clk 0:00:03]} 49. f7+ {[%clk 0:00:08]}  Kf8 {[%clk 0:00:03]} 50. Kd7 {[%clk 0:00:08]}  c5 {[%clk 0:00:03]} 51. Kc6 {[%clk 0:00:08]}  Kxf7 {[%clk 0:00:02]} 52. Kxb6 {[%clk 0:00:09]}  c4 {[%clk 0:00:02]} 53. Kc5 {[%clk 0:00:08]}  Ke6 {[%clk 0:00:02]} 54. Kxc4 {[%clk 0:00:08]}  Kd6 {[%clk 0:00:03]} 55. Kb4 {[%clk 0:00:09]} 1-0


[Site "https://www.chess.com"]

[Event "Titled Tuesday Blitz March 08 Early 2022"]
[White "Zanette, Edgard Vinicius"]
[Black "Budrewicz, Krzysztof"]
[WhiteFideId "2109263"]
[BlackFideId "1127950"]
[WhiteElo "2182"]
[BlackElo "2248"]
[Result "0-1"]
[Round "05"]
[TimeControl "180+1"]
[Date "2022.03.09"]
[WhiteClock "0:00:08"]
[BlackClock "0:00:14"]

1. e4 {[%clk 0:03:00]}  c5 {[%clk 0:02:58]} 2. Nc3 {[%clk 0:02:59]}  Nc6 {[%clk 0:02:58]} 3. g3 {[%clk 0:02:58]}  g6 {[%clk 0:02:58]} 4. Bg2 {[%clk 0:02:58]}  Bg7 {[%clk 0:02:59]} 5. Nge2 {[%clk 0:02:57]}  e6 {[%clk 0:02:59]} 6. O-O {[%clk 0:02:57]}  Nge7 {[%clk 0:02:59]} 7. d3 {[%clk 0:02:56]}  O-O {[%clk 0:02:59]} 8. Be3 {[%clk 0:02:57]}  Nd4 {[%clk 0:02:59]} 9. Qd2 {[%clk 0:02:57]}  Nec6 {[%clk 0:02:57]} 10. Rab1 {[%clk 0:02:48]}  d6 {[%clk 0:02:55]} 11. f4 {[%clk 0:02:45]}  f5 {[%clk 0:02:54]} 12. exf5 {[%clk 0:02:36]}  gxf5 {[%clk 0:02:52]} 13. Nd1 {[%clk 0:02:33]}  Bd7 {[%clk 0:02:46]} 14. c3 {[%clk 0:02:31]}  Nxe2+ {[%clk 0:02:46]} 15. Qxe2 {[%clk 0:02:31]}  Qa5 {[%clk 0:02:47]} 16. a3 {[%clk 0:02:26]}  Rae8 {[%clk 0:02:46]} 17. Nf2 {[%clk 0:02:02]}  Qa6 {[%clk 0:02:29]} 18. Qd2 {[%clk 0:01:51]}  b6 {[%clk 0:02:23]} 19. b4 {[%clk 0:01:35]}  Qc8 {[%clk 0:02:23]} 20. d4 {[%clk 0:01:17]}  cxd4 {[%clk 0:02:14]} 21. cxd4 {[%clk 0:01:18]}  Ne7 {[%clk 0:02:13]} 22. Rfc1 {[%clk 0:01:12]}  Qb8 {[%clk 0:02:12]} 23. Nd3 {[%clk 0:01:00]}  Rc8 {[%clk 0:02:10]} 24. b5 {[%clk 0:00:57]}  Rxc1+ {[%clk 0:02:06]} 25. Qxc1 {[%clk 0:00:57]}  Rc8 {[%clk 0:02:06]} 26. Qd2 {[%clk 0:00:57]}  Qc7 {[%clk 0:02:03]} 27. Rc1 {[%clk 0:00:56]}  Qd8 {[%clk 0:02:03]} 28. Rxc8 {[%clk 0:00:56]}  Qxc8 {[%clk 0:02:02]} 29. a4 {[%clk 0:00:56]}  Qc4 {[%clk 0:02:02]} 30. Nb4 {[%clk 0:00:52]}  Kf7 {[%clk 0:01:56]} 31. Bf1 {[%clk 0:00:51]}  Qc7 {[%clk 0:01:51]} 32. Be2 {[%clk 0:00:52]}  Bc8 {[%clk 0:01:44]} 33. d5 {[%clk 0:00:48]}  exd5 {[%clk 0:01:16]} 34. Nxd5 {[%clk 0:00:47]}  Nxd5 {[%clk 0:01:15]} 35. Qxd5+ {[%clk 0:00:48]}  Be6 {[%clk 0:01:15]} 36. Bh5+ {[%clk 0:00:40]}  Ke7 {[%clk 0:01:14]} 37. Qa8 {[%clk 0:00:39]}  Bc8 {[%clk 0:01:12]} 38. Qd5 {[%clk 0:00:28]}  Be6 {[%clk 0:01:09]} 39. Qa8 {[%clk 0:00:28]}  Bc8 {[%clk 0:00:42]} 40. Qd5 {[%clk 0:00:28]}  Kf8 {[%clk 0:00:26]} 41. h4 {[%clk 0:00:26]}  Bf6 {[%clk 0:00:25]} 42. Kh2 {[%clk 0:00:25]}  Kg7 {[%clk 0:00:25]} 43. Kh3 {[%clk 0:00:24]}  Qe7 {[%clk 0:00:24]} 44. Bd4 {[%clk 0:00:23]}  Bxd4 {[%clk 0:00:20]} 45. Qxd4+ {[%clk 0:00:23]}  Kh6 {[%clk 0:00:21]} 46. Bf3 {[%clk 0:00:22]}  Be6 {[%clk 0:00:18]} 47. Qh8 {[%clk 0:00:22]}  Kg6 {[%clk 0:00:17]} 48. Qb8 {[%clk 0:00:22]}  Kg7 {[%clk 0:00:17]} 49. h5 {[%clk 0:00:22]}  Qf7 {[%clk 0:00:16]} 50. Qxd6 {[%clk 0:00:21]}  Qd7 {[%clk 0:00:17]} 51. Qe5+ {[%clk 0:00:21]}  Kf7 {[%clk 0:00:17]} 52. h6 {[%clk 0:00:21]}  Qe7 {[%clk 0:00:16]} 53. Qg7+ {[%clk 0:00:19]}  Ke8 {[%clk 0:00:16]} 54. Bh5+ {[%clk 0:00:20]}  Kd7 {[%clk 0:00:16]} 55. Qd4+ {[%clk 0:00:19]}  Kc7 {[%clk 0:00:16]} 56. Qe5+ {[%clk 0:00:19]}  Qd6 {[%clk 0:00:14]} 57. Qg7+ {[%clk 0:00:18]}  Qd7 {[%clk 0:00:13]} 58. Bf3 {[%clk 0:00:17]}  Qxg7 {[%clk 0:00:11]} 59. hxg7 {[%clk 0:00:17]}  Kd6 {[%clk 0:00:12]} 60. g4 {[%clk 0:00:16]}  Ke7 {[%clk 0:00:10]} 61. gxf5 {[%clk 0:00:15]}  Bxf5+ {[%clk 0:00:10]} 62. Bg4 {[%clk 0:00:13]}  Bxg4+ {[%clk 0:00:10]} 63. Kxg4 {[%clk 0:00:13]}  Kf7 {[%clk 0:00:11]} 64. g8=Q+ {[%clk 0:00:09]}  Kxg8 {[%clk 0:00:11]} 65. Kg5 {[%clk 0:00:10]}  Kg7 {[%clk 0:00:11]} 66. f5 {[%clk 0:00:08]}  Kf7 {[%clk 0:00:11]} 67. Kh6 {[%clk 0:00:06]}  Kf6 {[%clk 0:00:11]} 68. Kxh7 {[%clk 0:00:06]}  Kxf5 {[%clk 0:00:12]} 69. Kg7 {[%clk 0:00:07]}  Ke6 {[%clk 0:00:11]} 70. Kf8 {[%clk 0:00:07]}  Kd6 {[%clk 0:00:12]} 71. Ke8 {[%clk 0:00:08]}  Kc5 {[%clk 0:00:13]} 72. Kd7 {[%clk 0:00:08]}  Kb4 {[%clk 0:00:13]} 73. Kc7 {[%clk 0:00:08]}  Kxa4 {[%clk 0:00:14]} 74. Kc6 {[%clk 0:00:08]}  Ka5 {[%clk 0:00:14]} 75. Kd5 {[%clk 0:00:08]}  Kxb5 {[%clk 0:00:14]} 0-1


[Site "https://www.chess.com"]

[Event "Titled Tuesday Blitz March 08 Early 2022"]
[White "Zhu, Jiner"]
[Black "Butti, Enrique"]
[WhiteFideId "8608059"]
[BlackFideId "3700470"]
[WhiteElo "2281"]
[BlackElo "2080"]
[Result "1-0"]
[Round "05"]
[TimeControl "180+1"]
[Date "2022.03.09"]
[WhiteClock "0:02:11"]
[BlackClock "0:02:31"]

1. e4 {[%clk 0:03:00]}  c5 {[%clk 0:02:55]} 2. Nf3 {[%clk 0:03:00]}  d6 {[%clk 0:02:54]} 3. d4 {[%clk 0:03:01]}  cxd4 {[%clk 0:02:53]} 4. Nxd4 {[%clk 0:03:01]}  Nf6 {[%clk 0:02:53]} 5. Nc3 {[%clk 0:03:01]}  g6 {[%clk 0:02:53]} 6. Be3 {[%clk 0:02:58]}  Bg7 {[%clk 0:02:52]} 7. Be2 {[%clk 0:02:55]}  O-O {[%clk 0:02:51]} 8. O-O {[%clk 0:02:56]}  Nbd7 {[%clk 0:02:43]} 9. f4 {[%clk 0:02:51]}  Re8 {[%clk 0:02:42]} 10. Kh1 {[%clk 0:02:45]}  b6 {[%clk 0:02:39]} 11. Bf3 {[%clk 0:02:39]}  Bb7 {[%clk 0:02:39]} 12. Qd2 {[%clk 0:02:28]}  Rc8 {[%clk 0:02:31]} 13. e5 {[%clk 0:02:11]} 1-0


[Site "https://www.chess.com"]

[Event "Titled Tuesday Blitz March 08 Early 2022"]
[White "parintele_chess"]
[Black "Shubenkova, Veronika"]
[BlackFideId "44124040"]
[WhiteElo "2207"]
[BlackElo "1938"]
[Result "0-1"]
[Round "05"]
[TimeControl "180+1"]
[Date "2022.03.09"]
[WhiteClock "0:01:20"]
[BlackClock "0:01:58"]

1. d4 {[%clk 0:03:00]}  d5 {[%clk 0:02:59]} 2. Bf4 {[%clk 0:03:00]}  e6 {[%clk 0:02:59]} 3. Nf3 {[%clk 0:03:00]}  Bd6 {[%clk 0:02:59]} 4. Bg3 {[%clk 0:02:55]}  f5 {[%clk 0:02:59]} 5. e3 {[%clk 0:02:54]}  Nf6 {[%clk 0:02:59]} 6. c4 {[%clk 0:02:50]}  c6 {[%clk 0:02:57]} 7. Nc3 {[%clk 0:02:50]}  O-O {[%clk 0:02:56]} 8. Ne5 {[%clk 0:02:49]}  Qe7 {[%clk 0:02:54]} 9. Bd3 {[%clk 0:02:45]}  Nbd7 {[%clk 0:02:53]} 10. f4 {[%clk 0:02:44]}  Ne4 {[%clk 0:02:48]} 11. Bxe4 {[%clk 0:02:42]}  fxe4 {[%clk 0:02:47]} 12. O-O {[%clk 0:02:40]}  Nf6 {[%clk 0:02:39]} 13. Bh4 {[%clk 0:02:36]}  Qe8 {[%clk 0:02:31]} 14. g4 {[%clk 0:02:26]}  Bxe5 {[%clk 0:02:18]} 15. fxe5 {[%clk 0:02:27]}  Nd7 {[%clk 0:02:18]} 16. Qe2 {[%clk 0:02:18]}  Qg6 {[%clk 0:02:13]} 17. Rxf8+ {[%clk 0:02:06]}  Nxf8 {[%clk 0:02:08]} 18. Rf1 {[%clk 0:02:04]}  Bd7 {[%clk 0:02:06]} 19. h3 {[%clk 0:01:57]}  Re8 {[%clk 0:02:04]} 20. Kh2 {[%clk 0:01:55]}  h6 {[%clk 0:02:04]} 21. Rf4 {[%clk 0:01:51]}  Nh7 {[%clk 0:02:03]} 22. Qf2 {[%clk 0:01:48]}  Ng5 {[%clk 0:02:00]} 23. Bxg5 {[%clk 0:01:47]}  hxg5 {[%clk 0:02:00]} 24. Nxe4 {[%clk 0:01:20]}  dxe4 {[%clk 0:01:59]} 25. Rxe4 {[%clk 0:01:20]}  Qxe4 {[%clk 0:01:58]} 0-1


[Site "https://www.chess.com"]

[Event "Titled Tuesday Blitz March 08 Early 2022"]
[White "Abarca Gonzalez, Nicolas"]
[Black "Sanchez Alvares, Kelvin Antonio"]
[WhiteFideId "3409422"]
[BlackFideId "3906680"]
[WhiteElo "2504"]
[BlackElo "2193"]
[Result "1-0"]
[Round "06"]
[TimeControl "180+1"]
[Date "2022.03.09"]
[WhiteClock "0:00:06"]
[BlackClock "0:00:03"]

1. e4 {[%clk 0:02:56]}  e5 {[%clk 0:03:00]} 2. Nf3 {[%clk 0:02:46]}  Nc6 {[%clk 0:02:57]} 3. Bc4 {[%clk 0:02:45]}  Bc5 {[%clk 0:02:56]} 4. d4 {[%clk 0:02:45]}  exd4 {[%clk 0:02:55]} 5. c3 {[%clk 0:02:35]}  Nf6 {[%clk 0:02:54]} 6. O-O {[%clk 0:02:30]}  d6 {[%clk 0:02:44]} 7. cxd4 {[%clk 0:02:29]}  Bb6 {[%clk 0:02:45]} 8. Nc3 {[%clk 0:02:28]}  Bg4 {[%clk 0:02:43]} 9. d5 {[%clk 0:02:22]}  Ne5 {[%clk 0:02:26]} 10. Bb5+ {[%clk 0:02:22]}  Bd7 {[%clk 0:02:19]} 11. Nxe5 {[%clk 0:02:18]}  dxe5 {[%clk 0:02:17]} 12. Bc4 {[%clk 0:02:05]}  O-O {[%clk 0:02:16]} 13. Kh1 {[%clk 0:02:06]}  Ng4 {[%clk 0:02:10]} 14. Qf3 {[%clk 0:01:45]}  Qh4 {[%clk 0:02:00]} 15. h3 {[%clk 0:01:45]}  Nxf2+ {[%clk 0:01:57]} 16. Kh2 {[%clk 0:01:45]}  Ng4+ {[%clk 0:01:53]} 17. Kh1 {[%clk 0:01:44]}  Nf6 {[%clk 0:01:46]} 18. Be3 {[%clk 0:01:40]}  Bg4 {[%clk 0:01:33]} 19. Qf2 {[%clk 0:01:34]}  Qxf2 {[%clk 0:01:28]} 20. Bxf2 {[%clk 0:01:34]}  Bd7 {[%clk 0:01:20]} 21. g4 {[%clk 0:01:22]}  Bxf2 {[%clk 0:01:16]} 22. Rxf2 {[%clk 0:01:23]}  Ne8 {[%clk 0:01:10]} 23. Rc1 {[%clk 0:01:12]}  Nd6 {[%clk 0:01:08]} 24. Bd3 {[%clk 0:01:12]}  c6 {[%clk 0:00:58]} 25. Bb1 {[%clk 0:01:09]}  c5 {[%clk 0:00:57]} 26. Kg2 {[%clk 0:01:06]}  b5 {[%clk 0:00:56]} 27. Kf3 {[%clk 0:01:05]}  a5 {[%clk 0:00:55]} 28. Nd1 {[%clk 0:01:04]}  c4 {[%clk 0:00:54]} 29. Ne3 {[%clk 0:01:05]}  Rfc8 {[%clk 0:00:54]} 30. Rfc2 {[%clk 0:00:58]}  a4 {[%clk 0:00:53]} 31. a3 {[%clk 0:00:57]}  Nb7 {[%clk 0:00:50]} 32. Rg2 {[%clk 0:00:52]}  Nc5 {[%clk 0:00:50]} 33. h4 {[%clk 0:00:52]}  Nb3 {[%clk 0:00:49]} 34. Rcg1 {[%clk 0:00:52]}  Nd4+ {[%clk 0:00:48]} 35. Kf2 {[%clk 0:00:49]}  Kf8 {[%clk 0:00:45]} 36. Nf5 {[%clk 0:00:48]}  c3 {[%clk 0:00:40]} 37. bxc3 {[%clk 0:00:47]}  Rxc3 {[%clk 0:00:39]} 38. Rg3 {[%clk 0:00:44]}  Rac8 {[%clk 0:00:36]} 39. Nd6 {[%clk 0:00:44]}  Rxg3 {[%clk 0:00:31]} 40. Rxg3 {[%clk 0:00:38]}  Rc1 {[%clk 0:00:31]} 41. Bd3 {[%clk 0:00:38]}  Rc3 {[%clk 0:00:28]} 42. Bf1 {[%clk 0:00:31]}  Rxg3 {[%clk 0:00:28]} 43. Kxg3 {[%clk 0:00:32]}  Ke7 {[%clk 0:00:27]} 44. Nb7 {[%clk 0:00:30]}  Nc2 {[%clk 0:00:22]} 45. d6+ {[%clk 0:00:25]}  Kf8 {[%clk 0:00:17]} 46. Nc5 {[%clk 0:00:25]}  Bc6 {[%clk 0:00:17]} 47. Nd3 {[%clk 0:00:19]}  f6 {[%clk 0:00:16]} 48. g5 {[%clk 0:00:17]}  Nxa3 {[%clk 0:00:15]} 49. Nb4 {[%clk 0:00:17]}  Bd7 {[%clk 0:00:15]} 50. gxf6 {[%clk 0:00:17]}  gxf6 {[%clk 0:00:14]} 51. Bh3 {[%clk 0:00:18]}  Bxh3 {[%clk 0:00:14]} 52. Kxh3 {[%clk 0:00:19]}  Nc4 {[%clk 0:00:14]} 53. d7 {[%clk 0:00:20]}  Ke7 {[%clk 0:00:14]} 54. Kg4 {[%clk 0:00:16]}  Kxd7 {[%clk 0:00:15]} 55. Kh5 {[%clk 0:00:16]}  Ke6 {[%clk 0:00:14]} 56. Kh6 {[%clk 0:00:17]}  Nd6 {[%clk 0:00:14]} 57. Kxh7 {[%clk 0:00:17]}  Nxe4 {[%clk 0:00:14]} 58. Kg7 {[%clk 0:00:15]}  f5 {[%clk 0:00:14]} 59. h5 {[%clk 0:00:15]}  Nf6 {[%clk 0:00:13]} 60. h6 {[%clk 0:00:15]}  f4 {[%clk 0:00:12]} 61. Nd5 {[%clk 0:00:16]}  Nh5+ {[%clk 0:00:10]} 62. Kg6 {[%clk 0:00:16]}  Kxd5 {[%clk 0:00:08]} 63. h7 {[%clk 0:00:15]}  f3 {[%clk 0:00:06]} 64. h8=Q {[%clk 0:00:14]}  Nf4+ {[%clk 0:00:07]} 65. Kf5 {[%clk 0:00:14]}  f2 {[%clk 0:00:08]} 66. Qd8+ {[%clk 0:00:14]}  Kc4 {[%clk 0:00:07]} 67. Qd1 {[%clk 0:00:14]}  Nd3 {[%clk 0:00:07]} 68. Ke4 {[%clk 0:00:12]}  Nc5+ {[%clk 0:00:04]} 69. Ke3 {[%clk 0:00:11]}  a3 {[%clk 0:00:04]} 70. Kxf2 {[%clk 0:00:11]}  Nb3 {[%clk 0:00:03]} 71. Qc2+ {[%clk 0:00:09]}  Kb4 {[%clk 0:00:03]} 72. Ke3 {[%clk 0:00:06]} 1-0


[Site "https://www.chess.com"]

[Event "Titled Tuesday Blitz March 08 Early 2022"]
[White "Ahn, Hongjin"]
[Black "Tari, Aryan"]
[WhiteFideId "13201492"]
[BlackFideId "1510045"]
[WhiteElo "1873"]
[BlackElo "2567"]
[Result "0-1"]
[Round "06"]
[TimeControl "180+1"]
[Date "2022.03.08"]
[WhiteClock "0:00:02"]
[BlackClock "0:00:18"]

1. c4 {[%clk 0:03:00]}  Na6 {[%clk 0:02:41]} 2. Nf3 {[%clk 0:02:59]}  c5 {[%clk 0:02:37]} 3. Nc3 {[%clk 0:02:58]}  Nc7 {[%clk 0:02:36]} 4. g3 {[%clk 0:02:57]}  d5 {[%clk 0:02:36]} 5. cxd5 {[%clk 0:02:57]}  Nxd5 {[%clk 0:02:37]} 6. Bg2 {[%clk 0:02:54]}  Ngf6 {[%clk 0:02:34]} 7. e4 {[%clk 0:02:53]}  Nb4 {[%clk 0:02:23]} 8. O-O {[%clk 0:02:48]}  Nd3 {[%clk 0:02:22]} 9. e5 {[%clk 0:02:41]}  Nd5 {[%clk 0:02:10]} 10. Ne4 {[%clk 0:02:13]}  Bf5 {[%clk 0:01:53]} 11. Ne1 {[%clk 0:02:01]}  Nxe1 {[%clk 0:01:51]} 12. Rxe1 {[%clk 0:01:58]}  e6 {[%clk 0:01:52]} 13. d4 {[%clk 0:01:56]}  cxd4 {[%clk 0:01:49]} 14. Bg5 {[%clk 0:01:55]}  Qd7 {[%clk 0:01:47]} 15. Qxd4 {[%clk 0:01:52]}  h6 {[%clk 0:01:47]} 16. Bd2 {[%clk 0:01:47]}  Be7 {[%clk 0:01:47]} 17. Nc5 {[%clk 0:01:42]}  Qb5 {[%clk 0:01:41]} 18. Rac1 {[%clk 0:01:35]}  O-O {[%clk 0:01:37]} 19. Bf1 {[%clk 0:01:31]}  Qb6 {[%clk 0:01:32]} 20. Nb3 {[%clk 0:01:22]}  Rfc8 {[%clk 0:01:32]} 21. Qxb6 {[%clk 0:01:11]}  Nxb6 {[%clk 0:01:16]} 22. Bg2 {[%clk 0:01:02]}  Nd5 {[%clk 0:00:59]} 23. Nd4 {[%clk 0:00:46]}  Bd3 {[%clk 0:00:56]} 24. Bxd5 {[%clk 0:00:37]}  exd5 {[%clk 0:00:57]} 25. Rc3 {[%clk 0:00:34]}  Rxc3 {[%clk 0:00:52]} 26. Bxc3 {[%clk 0:00:32]}  Rc8 {[%clk 0:00:53]} 27. Rd1 {[%clk 0:00:30]}  Bg6 {[%clk 0:00:43]} 28. Nb5 {[%clk 0:00:25]}  Be4 {[%clk 0:00:32]} 29. Bd4 {[%clk 0:00:16]}  Rc2 {[%clk 0:00:26]} 30. Nc3 {[%clk 0:00:13]}  Bf3 {[%clk 0:00:25]} 31. Re1 {[%clk 0:00:08]}  Bg5 {[%clk 0:00:22]} 32. h4 {[%clk 0:00:07]}  Bc1 {[%clk 0:00:20]} 33. b3 {[%clk 0:00:05]}  Bd2 {[%clk 0:00:20]} 34. Re3 {[%clk 0:00:02]}  Rc1+ {[%clk 0:00:18]} 35. Kh2 {[%clk 0:00:02]}  Rh1# {[%clk 0:00:18]} 0-1


[Site "https://www.chess.com"]